bitfinex-derivatives/quotes_BTCF0:USTF0_20240923
["timestamp","ask_amount","ask_price","bid_price","bid_amount"]
[1727094786758,0.087712,63532.0,63531.0,0.15829465]
[1727094787054,0.087712,63532.0,63531.0,0.079713]
[1727094787759,0.087712,63532.0,63531.0,0.001]
[1727094789158,0.087712,63532.0,63531.0,0.079713]
[1727094789384,0.166424,63532.0,63531.0,0.001]
[1727094790353,0.638624,63532.0,63531.0,0.001]
[1727094790952,0.67717719,63532.0,63531.0,0.001]
[1727094792053,0.20497719,63532.0,63531.0,0.001]
[1727094792858,0.166424,63532.0,63531.0,0.001]
[1727094793261,0.27635896,63532.0,63531.0,0.001]
[1727094793651,0.19764696,63532.0,63531.0,0.001]
[1727094793865,0.087712,63532.0,63531.0,0.001]
[1727094794255,0.166424,63532.0,63531.0,0.001]
[1727094794765,0.27635896,63532.0,63531.0,0.001]
[1727094797588,0.166424,63532.0,63531.0,0.001]
[1727094798571,0.087712,63532.0,63531.0,0.001]
[1727094798771,0.087712,63532.0,63531.0,0.06386246]
[1727094798963,0.087712,63532.0,63531.0,0.001]
[1727094799460,0.087712,63532.0,63531.0,0.14256111]
[1727094800467,0.087712,63532.0,63531.0,0.079713]
[1727094805569,0.009,63532.0,63531.0,0.079713]
[1727094805772,0.078701,63541.0,63535.0,0.078708]
[1727094806079,0.3608,63551.0,63538.0,0.078704]
[1727094806080,0.3070173,63539.0,63538.0,0.078704]
[1727094806259,0.16555818,63539.0,63538.0,0.078704]
[1727094806459,0.3070173,63539.0,63538.0,0.078704]
[1727094806668,0.2283143,63539.0,63538.0,0.078704]
[1727094806871,0.14145912,63540.0,63539.0,0.078703]
[1727094807575,0.22831439,63540.0,63539.0,0.078703]
[1727094807971,0.18000267,63540.0,63539.0,0.078703]
[1727094808169,0.04754355,63540.0,63539.0,0.078703]
[1727094808867,0.05154355,63540.0,63539.0,0.079703]
[1727094809269,0.14973639,63540.0,63539.0,0.080703]
[1727094809472,0.18827994,63540.0,63539.0,0.159406]
[1727094809669,0.06254355,63540.0,63539.0,0.159406]
[1727094812968,0.024,63540.0,63539.0,0.159406]
[1727094813663,0.024,63540.0,63539.0,0.080703]
[1727094819765,0.102702,63540.0,63539.0,0.080703]
[1727094821294,0.102702,63540.0,63539.0,0.002]
[1727094824879,0.181404,63540.0,63539.0,0.002]
[1727094828089,0.42458398,63540.0,63539.0,0.002]
[1727094828787,0.3469693,63540.0,63539.0,0.002]
[1727094834483,0.51995465,63540.0,63539.0,0.002]
[1727094835092,0.40342713,63540.0,63539.0,0.002]
[1727094835289,0.3469693,63540.0,63539.0,0.002]
[1727094835794,0.157418,63534.0,63533.0,0.0037]
[1727094836002,0.157418,63534.0,63529.0,0.078715]
[1727094836003,0.078711,63533.0,63529.0,0.078715]
[1727094836191,0.158714,63530.0,63529.0,0.078715]
[1727094838495,0.078718,63527.0,63526.0,0.12825097]
[1727094839993,0.078718,63527.0,63526.0,0.13025097]
[1727094840296,0.158718,63527.0,63526.0,0.13025997]
[1727094840798,0.158718,63527.0,63526.0,0.08307988]
[1727094841186,0.237436,63527.0,63526.0,0.00436088]
[1727094841395,1.1599724,63527.0,63523.0,0.04718202]
[1727094841583,1.1599724,63527.0,63516.0,0.05088202]
[1727094841584,0.078727,63520.0,63516.0,0.05088202]
[1727094841787,0.439527,63520.0,63512.0,0.0037]
[1727094841996,0.08,63513.0,63511.0,0.04718775]
[1727094842201,0.08,63513.0,63508.0,0.07874]
[1727094842202,0.07874,63509.0,63508.0,0.14163479]
[1727094842494,0.07874,63509.0,63508.0,0.07874]
[1727094843390,0.07874,63509.0,63508.0,0.09774]
[1727094843391,0.08074,63509.0,63508.0,0.09774]
[1727094844396,0.08074,63509.0,63508.0,0.019]
[1727094844598,0.15948,63509.0,63508.0,0.019]
[1727094844797,0.63184,63509.0,63508.0,0.019]
[1727094844995,0.078749,63502.0,63501.0,0.0037]
[1727094845188,0.08,63502.0,63494.0,0.0037]
[1727094845385,0.08,63495.0,63493.0,0.07876]
[1727094845599,0.158759,63495.0,63493.0,0.07876]
[1727094846601,0.13,63494.0,63493.0,0.08276]
[1727094846786,0.002,63495.0,63494.0,0.078759]
[1727094850902,0.080758,63495.0,63494.0,0.078759]
[1727094851097,0.32139508,63498.0,63494.0,0.12590629]
[1727094851401,0.078758,63495.0,63494.0,0.12590629]
[1727094851803,0.078761,63492.0,63491.0,0.078762]
[1727094852302,0.078761,63492.0,63491.0,0.12568411]
[1727094852906,0.078761,63492.0,63491.0,0.078762]
[1727094853405,0.078761,63492.0,63488.0,0.50332]
[1727094853406,0.078764,63490.0,63489.0,0.04692211]
[1727094853607,0.078764,63490.0,63489.0,0.078765]
[1727094853807,0.078764,63490.0,63489.0,0.12568711]
[1727094854894,0.079764,63490.0,63489.0,0.12768711]
[1727094855704,0.080764,63490.0,63489.0,0.12768711]
[1727094856002,0.080764,63490.0,63489.0,0.080765]
[1727094856214,0.07877,63485.0,63484.0,1e-06]
[1727094856398,0.13,63483.0,63467.0,0.0079]
[1727094856593,0.3608,63485.0,63460.0,0.06289479]
[1727094856594,0.13,63468.0,63460.0,0.06289479]
[1727094856914,0.13,63468.0,63464.0,0.439595]
[1727094857109,0.078793,63467.0,63464.0,0.439595]
[1727094857409,0.13,63468.0,63465.0,0.078794]
[1727094858214,0.078789,63470.0,63464.0,0.3608]
[1727094858400,0.078785,63474.0,63465.0,0.0469]
[1727094858603,0.078785,63474.0,63469.0,0.07879]
[1727094858906,0.078785,63474.0,63470.0,0.078788]
[1727094859105,0.078785,63474.0,63471.0,0.078786]
[1727094859296,0.078785,63474.0,63470.0,0.3608]
[1727094859497,0.078785,63474.0,63473.0,0.078785]
[1727094859800,0.079785,63474.0,63473.0,0.078785]
[1727094859996,0.080785,63474.0,63473.0,0.078785]
[1727094861404,0.080785,63474.0,63470.0,0.3608]
[1727094861405,0.078786,63473.0,63470.0,0.3608]
[1727094862001,0.002,63474.0,63470.0,0.439588]
[1727094862002,0.078786,63472.0,63470.0,0.439588]
[1727094863210,0.078786,63472.0,63471.0,0.078787]
[1727094863407,0.079786,63472.0,63471.0,0.078787]
[1727094864005,0.001,63472.0,63471.0,0.078787]
[1727094864295,0.001,63473.0,63472.0,0.078786]
[1727094864898,0.001,63473.0,63470.0,0.3608]
[1727094864899,0.078783,63475.0,63474.0,0.078784]
[1727094865711,0.3608,63476.0,63475.0,0.078782]
[1727094866403,0.078773,63483.0,63482.0,0.078771]
[1727094868617,0.079773,63483.0,63482.0,0.079771]
[1727094869209,0.001,63483.0,63482.0,0.079771]
[1727094869921,0.001,63483.0,63482.0,0.27298494]
[1727094870415,0.001,63483.0,63482.0,0.19436645]
[1727094871010,0.079773,63483.0,63482.0,0.079771]
[1727094871316,0.079773,63483.0,63482.0,0.001]
[1727094872009,0.158546,63483.0,63482.0,0.001]
[1727094873213,0.079773,63483.0,63482.0,0.001]
[1727094873617,0.158546,63483.0,63482.0,0.001]
[1727094875006,0.079773,63483.0,63482.0,0.001]
[1727094875213,0.158546,63483.0,63482.0,0.001]
[1727094875518,0.079773,63483.0,63482.0,0.001]
[1727094875715,0.158546,63483.0,63482.0,0.001]
[1727094875914,0.519346,63483.0,63482.0,0.001]
[1727094876320,0.440573,63483.0,63482.0,0.001]
[1727094879228,0.519346,63483.0,63482.0,0.001]
[1727094881618,0.440573,63483.0,63482.0,0.001]
[1727094882024,0.519346,63483.0,63482.0,0.001]
[1727094882523,0.440573,63483.0,63482.0,0.001]
[1727094882722,0.440573,63483.0,63482.0,0.079774]
[1727094882917,0.3618,63483.0,63482.0,0.35195393]
[1727094883119,0.001,63483.0,63482.0,0.19494148]
[1727094883719,0.001,63483.0,63482.0,0.24014148]
[1727094884129,0.001,63483.0,63482.0,0.37014148]
[1727094884323,0.472685,63490.0,63489.0,0.078765]
[1727094884324,0.078765,63490.0,63489.0,0.078765]
[1727094884628,0.078765,63490.0,63489.0,0.19393248]
[1727094884929,0.07876,63493.0,63492.0,0.078759]
[1727094885131,0.07876,63493.0,63492.0,0.27209099]
[1727094886333,0.08576,63493.0,63492.0,0.078759]
[1727094887625,0.09076,63493.0,63492.0,0.15734932]
[1727094887821,0.012,63493.0,63492.0,0.078759]
[1727094888031,0.012,63493.0,63492.0,0.33046047]
[1727094888032,0.007,63493.0,63492.0,0.33046047]
[1727094888331,0.004,63493.0,63492.0,0.33044369]
[1727094888633,0.004,63493.0,63492.0,0.078759]
[1727094888929,0.006,63493.0,63492.0,0.33042506]
[1727094889335,0.006,63493.0,63492.0,0.19357216]
[1727094890138,0.006,63493.0,63492.0,0.27233316]
[1727094890439,0.00236415,63496.0,63495.0,0.078758]
[1727094890627,0.00236415,63496.0,63495.0,0.69120086]
[1727094891335,0.00236415,63496.0,63495.0,0.55437116]
[1727094891933,0.00436415,63496.0,63495.0,0.55437116]
[1727094892330,0.00436415,63496.0,63495.0,0.64861176]
[1727094892733,0.08312015,63496.0,63495.0,0.64861176]
[1727094893428,0.08312015,63496.0,63495.0,0.55399566]
[1727094894639,0.00436415,63496.0,63495.0,0.55399566]
[1727094895030,0.00436415,63496.0,63495.0,0.439558]
[1727094895538,0.00436415,63496.0,63495.0,0.078758]
[1727094896133,0.09846681,63496.0,63495.0,0.078758]
[1727094897147,0.00436415,63496.0,63495.0,0.078758]
[1727094897334,0.09846681,63496.0,63495.0,0.078758]
[1727094901142,0.00436415,63496.0,63495.0,0.078758]
[1727094902144,0.00436415,63496.0,63495.0,0.157516]
[1727094902742,0.00436415,63496.0,63495.0,0.078758]
[1727094903244,0.078753,63499.0,63498.0,0.078754]
[1727094904452,0.083753,63499.0,63498.0,0.078754]
[1727094904652,0.085753,63499.0,63498.0,0.078754]
[1727094906451,0.164507,63499.0,63498.0,0.078754]
[1727094906645,0.085753,63499.0,63498.0,0.078754]
[1727094909557,0.007,63499.0,63498.0,0.27188651]
[1727094909736,0.007,63499.0,63498.0,0.19335078]
[1727094909943,0.0037,63506.0,63498.0,1.26579078]
[1727094910146,0.00236263,63512.0,63511.0,0.078738]
[1727094910352,0.00236263,63512.0,63511.0,0.287476]
[1727094910551,0.00236263,63512.0,63511.0,0.569538]
[1727094910945,0.3608,63524.0,63520.0,0.078726]
[1727094911143,0.078725,63521.0,63520.0,0.078726]
[1727094912660,0.078725,63521.0,63520.0,0.079726]
[1727094913256,0.439522,63524.0,63523.0,0.078723]
[1727094914958,0.442522,63524.0,63523.0,0.078723]
[1727094916854,0.4938,63524.0,63512.0,0.20765237]
[1727094917160,0.208735,63514.0,63513.0,0.078735]
[1727094918165,0.23915062,63514.0,63513.0,0.078735]
[1727094918958,0.10915062,63514.0,63513.0,0.078735]
[1727094919658,0.11015062,63514.0,63513.0,0.082735]
[1727094919858,0.11115062,63514.0,63513.0,0.088735]
[1727094920254,0.11115061,63514.0,63513.0,0.088735]
[1727094921459,0.18988561,63514.0,63513.0,0.01]
[1727094921659,0.18988561,63514.0,63513.0,0.004]
[1727094921660,0.18888561,63514.0,63513.0,0.004]
[1727094922250,0.078739,63510.0,63509.0,0.07874]
[1727094922451,0.10915461,63510.0,63509.0,0.07874]
[1727094923555,0.10915461,63510.0,63509.0,0.08274]
[1727094924467,0.10915461,63510.0,63509.0,0.07874]
[1727094925054,0.1091558,63510.0,63509.0,0.07874]
[1727094925257,0.078739,63510.0,63509.0,0.07874]
[1727094925457,0.078739,63510.0,63509.0,0.08074]
[1727094930759,0.287478,63510.0,63509.0,0.002]
[1727094931067,0.727017,63510.0,63509.0,0.002]
[1727094931567,1.799377,63510.0,63509.0,0.002]
[1727094931778,0.727017,63510.0,63509.0,0.002]
[1727094931959,0.518278,63510.0,63509.0,0.002]
[1727094932159,0.078749,63504.0,63503.0,0.078748]
[1727094933662,0.078749,63504.0,63503.0,0.079748]
[1727094934161,0.080749,63504.0,63503.0,0.079748]
[1727094935372,0.080749,63504.0,63503.0,0.078748]
[1727094942460,0.002,63504.0,63503.0,0.078748]
[1727094942658,0.002,63504.0,63503.0,0.584248]
[1727094943171,0.002,63504.0,63503.0,0.77689648]
[1727094943469,0.002,63504.0,63503.0,0.584248]
[1727094944177,0.080747,63504.0,63503.0,0.584248]
[1727094945284,0.002,63504.0,63503.0,0.584248]
[1727094945661,0.080747,63504.0,63503.0,0.584248]
[1727094945858,0.080747,63504.0,63503.0,0.485648]
[1727094946071,0.080747,63504.0,63503.0,0.124848]
[1727094951275,0.078751,63501.0,63499.0,0.06290712]
[1727094951473,0.287502,63500.0,63499.0,0.06290712]
[1727094951777,0.287502,63500.0,63496.0,0.439556]
[1727094951778,0.078755,63497.0,63496.0,0.439556]
[1727094952765,0.078755,63497.0,63496.0,0.078756]
[1727094953087,0.078755,63497.0,63496.0,0.439556]
[1727094953670,0.078755,63497.0,63496.0,0.078756]
[1727094953871,0.078755,63497.0,63496.0,0.439556]
[1727094954268,0.078755,63497.0,63496.0,0.444556]
[1727094954269,0.079755,63497.0,63496.0,0.444556]
[1727094954491,0.080755,63497.0,63496.0,0.448556]
[1727094956176,0.002,63497.0,63496.0,0.448556]
[1727094958380,0.080755,63497.0,63496.0,0.448556]
[1727094960369,0.03242097,63497.0,63496.0,0.448556]
[1727094960566,0.002,63497.0,63496.0,0.448556]
[1727094961971,0.15951,63497.0,63496.0,0.448556]
[1727094962181,0.28531818,63497.0,63496.0,0.448556]
[1727094962381,0.19807621,63497.0,63496.0,0.448556]
[1727094962689,0.19807621,63497.0,63496.0,0.009]
[1727094962690,0.32517529,63497.0,63496.0,0.009]
[1727094963377,0.238265,63497.0,63496.0,0.009]
[1727094964185,0.368265,63497.0,63496.0,0.009]
[1727094965689,0.729065,63497.0,63496.0,0.009]
[1727094966885,0.23628,63493.0,63492.0,0.00236212]
[1727094967188,0.36628,63493.0,63492.0,0.00236212]
[1727094968303,0.157538,63486.0,63485.0,0.0037]
[1727094968603,0.078775,63481.0,63480.0,0.0008]
[1727094968789,0.078782,63475.0,63474.0,0.3608]
[1727094969196,0.078782,63475.0,63474.0,0.439584]
[1727094970696,0.079782,63475.0,63474.0,0.439584]
[1727094970896,0.001,63475.0,63474.0,0.439584]
[1727094972304,0.002,63475.0,63474.0,0.439584]
[1727094974913,0.078771,63484.0,63478.0,0.078778]
[1727094975096,0.078779,63479.0,63478.0,0.078778]
[1727094976406,0.079779,63479.0,63478.0,0.078778]
[1727094976907,0.080779,63479.0,63478.0,0.078778]
[1727094978406,0.080779,63479.0,63478.0,0.14168512]
[1727094980308,0.080779,63479.0,63478.0,0.078778]
[1727094982317,0.080779,63479.0,63478.0,0.14156513]
[1727094982705,0.080779,63479.0,63478.0,0.078778]
[1727094983300,0.080779,63479.0,63478.0,0.14156513]
[1727094985311,0.159558,63479.0,63478.0,0.06278713]
[1727094985514,0.159558,63479.0,63474.0,0.44018031]
[1727094985515,0.002,63479.0,63474.0,0.3616]
[1727094985814,0.157564,63475.0,63474.0,0.3608]
[1727094987114,0.078782,63475.0,63474.0,0.3608]
[1727094987614,0.157564,63475.0,63474.0,0.3608]
[1727094988415,0.208782,63475.0,63474.0,0.3608]
[1727094988620,0.078789,63470.0,63464.0,0.0037]
[1727094988817,0.078789,63470.0,63469.0,0.07879]
[1727094990014,0.079789,63470.0,63469.0,0.07879]
[1727094991112,0.079789,63470.0,63466.0,0.078794]
[1727094991113,0.078794,63467.0,63466.0,0.078794]
[1727094993221,0.079794,63467.0,63466.0,0.078794]
[1727094993517,0.079794,63467.0,63455.0,0.17310697]
[1727094993518,0.078805,63457.0,63455.0,0.17310697]
[1727094993721,0.13,63457.0,63456.0,0.11526057]
[1727094993918,0.208805,63457.0,63456.0,0.19391927]
[1727094994721,0.13,63457.0,63453.0,0.15977999]
[1727094995017,0.078809,63454.0,63453.0,0.08096999]
[1727094995216,0.078807,63455.0,63453.0,0.19639889]
[1727094995417,0.078809,63454.0,63453.0,0.00236395]
[1727094995813,0.078811,63452.0,63451.0,0.15741804]
[1727094996415,0.078811,63452.0,63451.0,0.078812]
[1727094997220,0.079811,63452.0,63451.0,0.078812]
[1727094997521,0.001,63452.0,63451.0,0.078812]
[1727094997922,0.002,63452.0,63451.0,0.078812]
[1727095000528,0.07881,63453.0,63452.0,0.078811]
[1727095000529,0.03349145,63453.0,63452.0,0.078811]
[1727095001120,0.03349145,63453.0,63452.0,0.27217524]
[1727095001628,0.078806,63456.0,63455.0,0.078806]
[1727095003232,0.078806,63456.0,63455.0,0.14154231]
[1727095003957,0.079806,63456.0,63455.0,0.14154231]
[1727095004227,0.080806,63456.0,63455.0,0.078806]
[1727095004431,0.002,63456.0,63455.0,0.078806]
[1727095004631,0.0037,63463.0,63455.0,0.078806]
[1727095004632,0.0037,63463.0,63462.0,0.078799]
[1727095004819,0.078789,63470.0,63463.0,0.078797]
[1727095004820,0.439596,63464.0,63463.0,0.078797]
[1727095005226,0.3608,63464.0,63463.0,0.078797]
[1727095006436,0.3618,63464.0,63463.0,0.078797]
[1727095006733,0.440596,63464.0,63463.0,0.078797]
[1727095007537,0.441596,63464.0,63463.0,0.078797]
[1727095013324,0.3628,63464.0,63463.0,0.078797]
[1727095015136,0.441596,63464.0,63463.0,0.078797]
[1727095015729,0.441596,63464.0,63463.0,0.19305476]
[1727095016730,0.441596,63464.0,63463.0,0.28735473]
[1727095016731,0.080796,63464.0,63463.0,0.28735473]
[1727095016931,0.080796,63464.0,63463.0,0.19305476]
[1727095017534,0.080796,63464.0,63463.0,0.28735473]
[1727095018732,0.002,63464.0,63463.0,0.27185176]
[1727095018931,0.002,63464.0,63463.0,0.35064876]
[1727095019231,0.0037,63470.0,63469.0,0.15758]
[1727095019443,0.078781,63476.0,63472.0,0.078785]
[1727095019733,0.03936068,63479.0,63478.0,0.078778]
[1727095020935,0.03936068,63479.0,63478.0,0.15738546]
[1727095021233,0.03936068,63479.0,63478.0,0.078778]
[1727095023030,0.208777,63480.0,63479.0,0.078778]
[1727095023525,0.078772,63484.0,63483.0,0.07877]
[1727095023726,0.0479,63490.0,63483.0,0.07877]
[1727095023727,0.09422144,63490.0,63483.0,0.13]
[1727095023929,0.0037,63491.0,63487.0,0.078767]
[1727095023930,0.078767,63488.0,63487.0,0.078767]
[1727095025841,0.00606334,63494.0,63490.0,0.078763]
[1727095025842,0.078763,63491.0,63490.0,0.078763]
[1727095028738,0.081763,63491.0,63490.0,0.078763]
[1727095029238,0.082763,63491.0,63490.0,0.078763]
[1727095029632,0.079763,63491.0,63490.0,0.078763]
[1727095031237,0.078768,63487.0,63486.0,0.439568]
[1727095031745,0.002,63491.0,63490.0,0.078764]
[1727095031936,0.080763,63491.0,63490.0,0.078764]
[1727095032435,0.078763,63491.0,63490.0,0.078764]
[1727095032839,0.078768,63487.0,63486.0,0.444569]
[1727095034243,0.078768,63487.0,63486.0,0.443569]
[1727095034839,0.078768,63487.0,63486.0,0.439569]
[1727095035045,0.078768,63487.0,63486.0,0.440569]
[1727095035638,0.078768,63487.0,63486.0,0.444569]
[1727095036644,0.078768,63487.0,63486.0,0.083769]
[1727095037448,0.078764,63491.0,63490.0,0.078761]
[1727095038642,0.080764,63491.0,63490.0,0.078761]
[1727095041441,0.080764,63491.0,63484.0,0.3608]
[1727095041442,0.078764,63490.0,63487.0,0.078767]
[1727095041645,0.07877,63488.0,63487.0,0.078767]
[1727095042947,0.07877,63488.0,63487.0,0.081767]
[1727095043743,0.07877,63488.0,63487.0,0.082767]
[1727095044443,0.07877,63488.0,63487.0,0.081767]
[1727095044645,0.07877,63488.0,63487.0,0.082767]
[1727095045053,0.15754,63488.0,63487.0,0.082767]
[1727095045550,0.31631,63488.0,63487.0,0.004]
[1727095045752,1.79798669,63488.0,63487.0,0.004]
[1727095045956,1.86699781,63488.0,63487.0,0.004]
[1727095046155,0.57534559,63488.0,63487.0,0.004]
[1727095046455,0.33743461,63488.0,63487.0,0.004]
[1727095046651,0.14778112,63488.0,63487.0,0.082768]
[1727095046859,0.14778112,63488.0,63487.0,0.004]
[1727095047254,0.14778112,63488.0,63487.0,0.003]
[1727095047460,0.15278112,63488.0,63487.0,0.003]
[1727095048055,0.14778112,63488.0,63487.0,0.003]
[1727095048243,0.14778112,63488.0,63486.0,0.3608]
[1727095048244,0.078768,63487.0,63486.0,0.439568]
[1727095048444,0.14777912,63487.0,63486.0,0.439568]
[1727095048650,0.33742766,63487.0,63486.0,0.3608]
[1727095049459,0.19613086,63487.0,63486.0,0.3608]
[1727095049750,0.19613086,63487.0,63479.0,0.0037]
[1727095049751,0.31016941,63487.0,63479.0,0.0037]
[1727095049952,0.20463495,63483.0,63482.0,0.078774]
[1727095050158,0.2736404,63483.0,63482.0,0.078774]
[1727095050358,0.14778045,63483.0,63482.0,0.078774]
[1727095050654,0.27364219,63483.0,63482.0,0.078774]
[1727095050950,0.14778045,63483.0,63482.0,0.078774]
[1727095051555,0.14778045,63483.0,63482.0,0.079774]
[1727095052947,0.078775,63483.0,63482.0,0.14264273]
[1727095053152,0.078775,63483.0,63482.0,0.079774]
[1727095053659,0.078775,63483.0,63482.0,0.082774]
[1727095054949,0.078775,63483.0,63482.0,0.14576488]
[1727095059661,0.078771,63486.0,63485.0,0.078767]
[1727095059864,0.078771,63486.0,63485.0,0.208767]
[1727095060758,0.080771,63486.0,63485.0,0.208767]
[1727095061171,0.159542,63486.0,63485.0,0.078767]
[1727095061568,0.080771,63486.0,63485.0,0.078767]
[1727095067471,0.1497746,63486.0,63485.0,0.078767]
[1727095068368,0.080771,63486.0,63485.0,0.078767]
[1727095075477,0.14977509,63486.0,63485.0,0.078767]
[1727095077571,0.33985093,63486.0,63485.0,0.078767]
[1727095080179,0.41862193,63486.0,63485.0,0.078767]
[1727095080966,0.23631,63485.0,63484.0,0.3608]
[1727095081166,0.25907993,63485.0,63476.0,0.3645]
[1727095081376,0.07878,63477.0,63476.0,0.439581]
[1727095081679,0.14778409,63477.0,63476.0,0.439581]
[1727095082382,0.21948364,63477.0,63476.0,0.439581]
[1727095082584,0.21948364,63477.0,63476.0,0.443581]
[1727095083284,0.1092086,63477.0,63476.0,0.443581]
[1727095083487,0.07878,63477.0,63476.0,0.55664425]
[1727095084385,0.07978,63477.0,63476.0,0.55764425]
[1727095085086,0.08078,63477.0,63476.0,0.55764425]
[1727095085487,0.08078,63477.0,63476.0,0.55760517]
[1727095085681,0.08078,63477.0,63476.0,0.44454192]
[1727095086285,0.08078,63477.0,63476.0,0.444581]
[1727095086887,0.08078,63477.0,63476.0,0.44454192]
[1727095087186,0.08078,63477.0,63476.0,0.3658]
[1727095087376,0.15956,63477.0,63476.0,0.3658]
[1727095087801,0.08078,63477.0,63476.0,0.3658]
[1727095088384,0.15956,63477.0,63476.0,0.3658]
[1727095088693,0.08078,63477.0,63476.0,0.005]
[1727095088991,0.15956,63477.0,63476.0,0.005]
[1727095089187,0.23834,63477.0,63476.0,0.005]
[1727095089378,0.71094,63477.0,63476.0,0.06795462]
[1727095089583,1.07174,63477.0,63476.0,0.05222211]
[1727095089792,1.07174,63477.0,63476.0,0.005]
[1727095090582,1.07174,63477.0,63476.0,0.05222211]
[1727095090982,0.99296,63477.0,63476.0,0.05222211]
[1727095091290,0.52036,63477.0,63476.0,0.06795462]
[1727095093987,0.59914,63477.0,63476.0,0.06795462]
[1727095094193,0.52036,63477.0,63476.0,0.005]
[1727095095184,0.44158,63477.0,63476.0,0.005]
[1727095096181,0.44158,63477.0,63476.0,0.083781]
[1727095096890,0.3628,63477.0,63476.0,0.083781]
[1727095097892,0.44158,63477.0,63476.0,0.083781]
[1727095098497,0.53608963,63477.0,63476.0,0.083781]
[1727095099199,0.45716636,63477.0,63476.0,0.083781]
[1727095099386,0.3628,63477.0,63476.0,0.083781]
[1727095099591,0.44158,63477.0,63476.0,0.083781]
[1727095101095,0.08078,63477.0,63476.0,0.083781]
[1727095106001,0.08078,63477.0,63476.0,0.16252292]
[1727095106202,0.08078,63477.0,63476.0,0.27532026]
[1727095106500,0.08078,63477.0,63476.0,0.16252292]
[1727095106699,0.08078,63477.0,63476.0,0.083781]
[1727095107499,0.15956,63477.0,63476.0,0.083781]
[1727095110003,0.08078,63477.0,63476.0,0.083781]
[1727095112411,0.15956,63477.0,63476.0,0.005]
[1727095112601,1.31094,63477.0,63476.0,0.005]
[1727095112806,1.31094,63477.0,63476.0,0.05223795]
[1727095113014,1.31094,63477.0,63476.0,0.005]
[1727095114210,0.71094,63477.0,63476.0,0.005]
[1727095114422,0.36834,63477.0,63476.0,0.005]
[1727095116012,0.36834,63477.0,63476.0,0.3658]
[1727095116310,0.15956,63477.0,63476.0,0.3658]
[1727095116617,0.08078,63477.0,63476.0,0.50756263]
[1727095120618,0.14979458,63477.0,63476.0,0.444581]
[1727095121314,0.07101458,63477.0,63476.0,0.444581]
[1727095121516,0.03243275,63477.0,63476.0,0.444581]
[1727095121819,0.11210864,63477.0,63476.0,0.444581]
[1727095122020,0.14254139,63477.0,63476.0,0.444581]
[1727095122819,0.14254094,63477.0,63476.0,0.444581]
[1727095123422,0.22132094,63477.0,63476.0,0.444581]
[1727095124024,0.25990132,63477.0,63476.0,0.444581]
[1727095124212,0.14979268,63477.0,63476.0,0.444581]
[1727095125317,0.14979268,63477.0,63476.0,0.44357242]
[1727095126515,0.11121256,63477.0,63476.0,0.44357242]
[1727095126919,0.18999256,63477.0,63476.0,0.36479142]
[1727095127120,0.30735512,63477.0,63476.0,0.36479142]
[1727095127316,0.16593255,63475.0,63465.0,0.0037]
[1727095127519,0.16593255,63475.0,63453.0,0.3608]
[1727095127520,0.078809,63454.0,63453.0,0.3608]
[1727095127712,0.31889704,63454.0,63453.0,0.3608]
[1727095127914,0.27783729,63454.0,63453.0,0.3608]
[1727095128314,0.23924156,63454.0,63453.0,0.3608]
[1727095128524,0.208809,63454.0,63453.0,0.42378163]
[1727095128727,0.208809,63454.0,63453.0,0.3608]
[1727095129027,0.0459,63458.0,63454.0,0.078808]
[1727095129228,0.078806,63456.0,63455.0,0.04720201]
[1727095129722,0.078799,63462.0,63453.0,0.42378163]
[1727095129723,0.208805,63458.0,63453.0,0.42378163]
[1727095129924,0.288618,63454.0,63453.0,0.001]
[1727095130222,0.210809,63454.0,63453.0,0.04714613]
[1727095130521,0.210809,63454.0,63436.0,0.086731]
[1727095130522,0.078817,63447.0,63446.0,0.04714613]
[1727095130828,0.078815,63449.0,63444.0,0.04714613]
[1727095130829,0.07882,63445.0,63444.0,0.04714613]
[1727095131019,0.20882,63445.0,63444.0,0.04714613]
[1727095131219,0.20882,63445.0,63442.0,0.04714613]
[1727095131220,0.078822,63443.0,63442.0,0.04714613]
[1727095131420,0.03838621,63443.0,63442.0,0.04714613]
[1727095131926,0.03838621,63443.0,63440.0,0.439625]
[1727095132128,0.001,63454.0,63441.0,0.13]
[1727095132129,0.078813,63451.0,63441.0,0.13]
[1727095132425,0.078813,63451.0,63440.0,0.3608]
[1727095132426,0.078813,63451.0,63449.0,0.3608]
[1727095133525,0.078813,63451.0,63449.0,0.439614]
[1727095133724,0.078808,63455.0,63454.0,0.078808]
[1727095134828,0.079808,63455.0,63454.0,0.078808]
[1727095135029,0.080808,63455.0,63454.0,0.078808]
[1727095136630,0.002,63455.0,63450.0,0.078813]
[1727095136831,0.078812,63451.0,63450.0,0.078813]
[1727095138027,0.078812,63451.0,63450.0,0.439613]
[1727095138425,0.079812,63451.0,63450.0,0.439613]
[1727095138631,0.079812,63451.0,63450.0,0.078813]
[1727095138837,0.132,63451.0,63441.0,0.15756592]
[1727095139041,0.078819,63446.0,63445.0,0.40786039]
[1727095139335,0.208819,63446.0,63445.0,0.3608]
[1727095139522,0.078819,63446.0,63445.0,0.3608]
[1727095139931,0.078819,63446.0,63445.0,0.40786039]
[1727095140129,0.078819,63446.0,63445.0,0.3608]
[1727095140334,0.078819,63446.0,63445.0,0.40786039]
[1727095140527,0.078819,63446.0,63445.0,0.48668039]
[1727095141035,0.079819,63446.0,63445.0,0.48668039]
[1727095141230,0.080819,63446.0,63445.0,0.48668039]
[1727095141934,0.080819,63446.0,63445.0,0.43962]
[1727095144634,0.002,63446.0,63445.0,0.43962]
[1727095144937,0.002,63446.0,63445.0,0.56962]